bitfinex-derivatives/quotes_BTCF0:USTF0_20251208
["timestamp","ask_amount","ask_price","bid_price","bid_amount"]
[1765177566042,0.0927485,91505.0,91504.0,0.0455704]
[1765177570750,0.0673496,91496.0,91495.0,0.00016386]
[1765177571941,0.0673496,91496.0,91481.0,0.0109313]
[1765177571942,0.05642,91482.0,91481.0,0.05687]
[1765177572143,0.05846,91475.0,91474.0,0.44065]
[1765177572448,0.05846,91475.0,91474.0,0.45454882]
[1765177572854,0.14044822,91484.0,91483.0,0.05953]
[1765177573160,0.06955506,91484.0,91483.0,0.05953]
[1765177574559,0.07855506,91484.0,91483.0,0.05953]
[1765177575053,0.0693921,91475.0,91474.0,0.52544198]
[1765177575241,0.05846,91475.0,91474.0,0.45454882]
[1765177575438,0.0693912,91483.0,91482.0,0.05953]
[1765177576043,0.04054396,91484.0,91483.0,0.05953]
[1765177576343,0.06762396,91484.0,91483.0,0.05953]
[1765177577246,0.05862396,91484.0,91483.0,0.05953]
[1765177577951,0.06762396,91484.0,91483.0,0.05953]
[1765177578451,0.07855496,91484.0,91483.0,0.05953]
[1765177579150,0.07955496,91484.0,91483.0,0.05953]
[1765177581153,0.07855496,91484.0,91483.0,0.05953]
[1765177581346,0.07055496,91484.0,91483.0,0.05953]
[1765177581549,0.07855496,91484.0,91483.0,0.05953]
[1765177581951,0.07755496,91484.0,91483.0,0.05953]
[1765177582246,0.0693921,91475.0,91474.0,0.07342882]
[1765177582554,0.0693918,91478.0,91477.0,0.05953]
[1765177583754,0.05846,91478.0,91477.0,0.05953]
[1765177583955,0.0693917,91478.0,91477.0,0.05953]
[1765177584150,0.0753917,91478.0,91477.0,0.05953]
[1765177590659,0.0868621,91475.0,91474.0,0.01389882]
[1765177590862,0.0693928,91469.0,91468.0,0.14677365]
[1765177591562,0.0693928,91469.0,91468.0,0.05953]
[1765177591867,0.0693928,91469.0,91468.0,0.07439748]
[1765177592360,0.0693928,91469.0,91468.0,0.04403748]
[1765177592661,0.0693928,91469.0,91468.0,0.07439748]
[1765177593466,0.0723928,91469.0,91468.0,0.07539748]
[1765177596168,0.003,91469.0,91468.0,0.07539748]
[1765177601270,0.003,91469.0,91468.0,0.15355321]
[1765177601470,0.06146,91469.0,91468.0,0.15355321]
[1765177601662,0.06146,91469.0,91468.0,0.07539748]
[1765177601972,0.03338,91469.0,91468.0,0.07539748]
[1765177602269,0.003,91469.0,91468.0,0.07539748]
[1765177602457,0.0722828,91469.0,91468.0,0.07539748]
[1765177602866,0.003,91469.0,91468.0,0.07539748]
[1765177603373,0.03316,91469.0,91468.0,0.07539748]
[1765177604358,0.0722828,91469.0,91468.0,0.01586748]
[1765177604766,0.0722828,91469.0,91468.0,0.04478748]
[1765177605063,0.0722828,91469.0,91468.0,0.07395748]
[1765177605262,0.0722828,91469.0,91468.0,0.01586748]
[1765177605572,0.09706355,91469.0,91468.0,0.01586748]
[1765177606073,0.09706355,91469.0,91468.0,0.001]
[1765177612272,0.07239402,91469.0,91468.0,0.001]
[1765177617580,0.05835,91441.0,91440.0,0.07815573]
[1765177617777,0.01818,91446.0,91416.0,0.01729]
[1765177617778,0.05835,91420.0,91419.0,0.0690288]
[1765177618082,0.05835,91420.0,91419.0,0.05809]
[1765177618478,0.05835,91420.0,91419.0,0.0690288]
[1765177618780,0.03023848,91420.0,91419.0,0.0750288]
[1765177619082,0.03023848,91420.0,91419.0,0.0780288]
[1765177619278,0.02715848,91420.0,91419.0,0.0780288]
[1765177619875,0.05523848,91420.0,91419.0,0.06709]
[1765177620279,7.848e-05,91420.0,91419.0,0.0780288]
[1765177620478,7.848e-05,91420.0,91419.0,0.0720288]
[1765177620679,7.848e-05,91420.0,91419.0,0.0740288]
[1765177621884,7.848e-05,91420.0,91406.0,0.07815573]
[1765177621885,0.05516,91408.0,91406.0,0.07815573]
[1765177622188,0.05516,91398.0,91397.0,0.05632]
[1765177622681,0.05516,91398.0,91397.0,0.07165219]
[1765177624577,0.05516,91398.0,91397.0,0.07265219]
[1765177625274,0.05716,91398.0,91397.0,0.07265219]
[1765177626192,0.05716,91398.0,91397.0,0.01633219]
[1765177626690,0.05716,91398.0,91397.0,0.04487219]
[1765177627175,0.05716,91398.0,91397.0,0.01633219]
[1765177628781,0.05716,91398.0,91397.0,0.04487219]
[1765177628988,0.05716,91398.0,91397.0,0.01633219]
[1765177629181,0.05716,91398.0,91397.0,0.07265219]
[1765177631486,0.05816,91398.0,91397.0,0.07165219]
[1765177631788,0.05616,91398.0,91397.0,0.07165219]
[1765177631988,0.03708,91398.0,91397.0,0.07265219]
[1765177632395,0.03608,91398.0,91397.0,0.07165219]
[1765177632589,0.06436,91398.0,91397.0,0.07165219]
[1765177632988,0.06536,91398.0,91397.0,0.07265219]
[1765177633193,0.01,91398.0,91397.0,0.07265219]
[1765177634390,0.009,91398.0,91397.0,0.07265219]
[1765177634993,0.06642435,91407.0,91406.0,0.05668]
[1765177635392,0.06642435,91407.0,91406.0,0.07346]
[1765177635799,0.00016405,91407.0,91406.0,0.07346]
[1765177636401,0.00616405,91407.0,91406.0,0.07346]
[1765177636997,0.00716405,91407.0,91406.0,0.0844004]
[1765177637699,0.00016405,91407.0,91406.0,0.0844004]
[1765177637899,0.00516405,91407.0,91406.0,0.0844004]
[1765177638697,0.00416405,91407.0,91406.0,0.0844004]
[1765177643600,7.848e-05,91420.0,91419.0,0.0676188]
[1765177644696,0.00016405,91429.0,91428.0,0.0843977]
[1765177645603,0.00026717,91429.0,91428.0,0.0843977]
[1765177645995,0.00426717,91429.0,91428.0,0.0843977]
[1765177647308,0.01326717,91429.0,91428.0,0.0843977]
[1765177648708,0.05532,91452.0,91446.0,0.0221655]
[1765177648906,0.0662549,91452.0,91451.0,0.05668]
[1765177649403,0.0837449,91452.0,91451.0,0.05668]
[1765177650000,0.0897449,91452.0,91451.0,0.05668]
[1765177650593,0.1017449,91452.0,91451.0,0.05668]
[1765177651399,0.0842549,91452.0,91451.0,0.05668]
[1765177652793,0.05532,91443.0,91442.0,0.05684405]
[1765177653199,0.0662559,91443.0,91442.0,0.00016405]
[1765177654299,0.0712559,91443.0,91442.0,0.00016405]
[1765177654498,0.0752559,91443.0,91442.0,0.00016405]
[1765177661011,0.0752559,91443.0,91442.0,0.02949405]
[1765177661305,0.0752559,91443.0,91442.0,0.00016405]
[1765177663704,0.0752559,91443.0,91442.0,0.02804405]
[1765177663910,0.0752559,91443.0,91442.0,0.05521405]
[1765177664716,0.0752559,91443.0,91442.0,0.02804405]
[1765177668616,0.0752559,91443.0,91442.0,0.00016405]
[1765177669817,0.0752559,91443.0,91442.0,0.05521405]
[1765177670522,0.0752559,91443.0,91442.0,0.00016405]
[1765177672422,0.0752559,91443.0,91442.0,0.02804405]
[1765177674333,0.10013529,91443.0,91442.0,0.02804405]
[1765177676227,0.0752559,91443.0,91442.0,0.02804405]
[1765177680734,0.0752559,91443.0,91442.0,0.05699405]
[1765177681334,0.009,91443.0,91442.0,0.05699405]
[1765177682240,0.0705545,91455.0,91454.0,0.05606]
[1765177682542,0.05962,91455.0,91454.0,0.0669946]
[1765177683339,0.06062,91455.0,91454.0,0.0669946]
[1765177684738,0.06262,91455.0,91454.0,0.0669946]
[1765177685535,0.0735545,91455.0,91454.0,0.0669946]
[1765177686539,0.06262,91455.0,91454.0,0.0669946]
[1765177690341,0.06262,91455.0,91454.0,0.05606]
[1765177691444,0.07896,91455.0,91454.0,0.05606]
[1765177692132,0.06262,91455.0,91454.0,0.05606]
[1765177693439,0.003,91455.0,91454.0,0.05606]
[1765177693641,0.1466,91455.0,91454.0,0.05606]
[1765177693843,0.20154,91455.0,91454.0,0.05606]
[1765177694749,0.1466,91455.0,91454.0,0.05606]
[1765177699943,0.17412,91455.0,91454.0,0.05606]
[1765177700140,0.20154,91455.0,91454.0,0.05606]
[1765177707154,0.17412,91455.0,91454.0,0.05606]
[1765177707543,0.20154,91455.0,91454.0,0.05606]
[1765177709455,0.20154,91455.0,91454.0,0.13458251]
[1765177709751,0.20154,91455.0,91454.0,0.07852251]
[1765177709959,0.0658746,91454.0,91453.0,0.10837251]
[1765177710259,0.0658746,91454.0,91453.0,0.05847]
[1765177710959,0.0678746,91454.0,91453.0,0.05847]
[1765177711258,0.0678746,91454.0,91453.0,0.13699251]
[1765177711662,0.0678746,91454.0,91453.0,0.13999251]
[1765177712362,0.05694,91454.0,91453.0,0.06147]
[1765177716961,0.05694,91454.0,91453.0,0.003]
[1765177720861,0.05694,91454.0,91453.0,0.0139347]
[1765177722556,0.05694,91454.0,91453.0,0.003]
[1765177725965,0.0109357,91445.0,91444.0,0.07861285]
[1765177726264,0.07235,91444.0,91443.0,0.02756]
[1765177726771,0.0664559,91443.0,91442.0,0.00016405]
[1765177728170,0.0664559,91443.0,91442.0,0.00416405]
[1765177728372,0.0674559,91443.0,91442.0,0.00416405]
[1765177729873,0.05652,91443.0,91442.0,0.00416405]
[1765177730272,0.05652,91443.0,91442.0,0.03172405]
[1765177730872,0.05652,91443.0,91442.0,0.05986405]
[1765177733266,0.02933,91443.0,91442.0,0.05986405]
[1765177733568,0.02933,91443.0,91442.0,0.1384769]
[1765177733781,0.001,91443.0,91442.0,0.1384769]
[1765177734270,0.001,91443.0,91442.0,0.05986405]
[1765177735876,0.05652,91443.0,91442.0,0.00416405]
[1765177736075,0.0674559,91443.0,91442.0,0.05986405]
[1765177740380,0.0674559,91443.0,91442.0,0.07080015]
[1765177740571,0.0674559,91443.0,91442.0,0.05986405]
[1765177741379,0.0674559,91443.0,91442.0,0.11876451]
[1765177741582,0.0674559,91443.0,91442.0,0.05986405]
[1765177742784,0.0674559,91443.0,91442.0,0.00416405]
[1765177743084,0.0674559,91443.0,91442.0,0.06034405]
[1765177744481,0.0674559,91443.0,91442.0,0.00416405]
[1765177744990,0.0674559,91443.0,91442.0,0.03167405]
[1765177746481,0.0674559,91443.0,91442.0,0.00416405]
[1765177748483,0.0674559,91443.0,91442.0,0.03167405]
[1765177751286,0.0674559,91443.0,91442.0,0.00416405]
[1765177751789,0.0674559,91443.0,91442.0,0.03167405]
[1765177754978,0.0674559,91443.0,91442.0,0.00416405]
[1765177757484,0.0673265,91438.0,91437.0,0.05890693]
[1765177757688,0.05639,91427.0,91426.0,0.07850776]
[1765177757887,0.0673278,91427.0,91426.0,0.05761]
[1765177758983,0.0673278,91427.0,91426.0,0.06461]
[1765177759382,0.0673278,91427.0,91426.0,0.06561]
[1765177762886,0.0673278,91427.0,91426.0,0.008]
[1765177763578,0.0673289,91418.0,91417.0,0.00016405]
[1765177764184,0.0673289,91418.0,91417.0,0.05777405]
[1765177764793,0.0673289,91418.0,91417.0,0.05977405]
[1765177765093,0.0673289,91418.0,91417.0,0.06877405]
[1765177789305,0.02948405,91436.0,91435.0,0.05855]
[1765177789498,0.04042085,91436.0,91435.0,0.05855]
[1765177790809,0.04442085,91436.0,91435.0,0.05855]
[1765177791107,0.07214085,91436.0,91435.0,0.05855]
[1765177791504,0.01510085,91436.0,91435.0,0.05855]
[1765177795014,0.00416405,91436.0,91435.0,0.05855]
[1765177796311,0.01510085,91436.0,91435.0,0.05855]
[1765177796815,0.00416405,91436.0,91435.0,0.05855]
[1765177801510,0.06120405,91436.0,91435.0,0.05855]
[1765177803313,0.00416405,91436.0,91435.0,0.05855]
[1765177803813,0.07179085,91436.0,91435.0,0.05855]
[1765177804015,0.06085405,91436.0,91435.0,0.05855]
[1765177810228,0.06085405,91436.0,91435.0,0.0694869]
[1765177814224,0.06085405,91436.0,91435.0,0.05855]
[1765177817927,0.00416405,91436.0,91435.0,0.05855]
[1765177819935,0.00416405,91436.0,91435.0,0.1371348]
[1765177823042,0.03185405,91436.0,91435.0,0.1371348]
[1765177823238,0.06120405,91436.0,91435.0,0.1371348]
[1765177824146,0.06120405,91436.0,91435.0,0.05855]
[1765177825738,0.03185405,91436.0,91435.0,0.05855]
[1765177825943,0.00416405,91436.0,91435.0,0.05855]
[1765177826344,0.03185405,91436.0,91435.0,0.05855]
[1765177827750,0.00416405,91436.0,91435.0,0.05855]
[1765177827942,0.00416405,91436.0,91435.0,0.1371348]
[1765177828346,0.03185405,91436.0,91435.0,0.05855]
[1765177833947,0.06120405,91436.0,91435.0,0.05855]
[1765177837459,0.06120405,91436.0,91435.0,0.1371348]
[1765177840261,0.06120405,91436.0,91435.0,0.05855]
[1765177861185,0.00416405,91436.0,91435.0,0.0694869]
[1765177863294,0.00016405,91436.0,91435.0,0.0694869]
[1765177863482,0.00316405,91436.0,91435.0,0.148181]
[1765177863990,0.00116405,91436.0,91435.0,0.148181]
[1765177864286,0.05593405,91436.0,91435.0,0.1372441]
[1765177865689,0.05593405,91436.0,91435.0,0.05855]
[1765177865994,0.05593405,91436.0,91435.0,0.05955]
[1765177870298,0.06593405,91436.0,91435.0,0.05955]
[1765177870801,0.06593405,91436.0,91435.0,0.1382441]
[1765177870995,0.06593405,91436.0,91435.0,0.05955]
[1765177876507,0.06593405,91436.0,91435.0,0.0704869]
[1765177876710,0.06593405,91436.0,91435.0,0.149181]
[1765177877012,0.01116405,91436.0,91435.0,0.149181]
[1765177877207,0.01116405,91436.0,91435.0,0.0704869]
[1765177878811,0.02210085,91436.0,91435.0,0.0704869]
[1765177879705,0.07923085,91436.0,91435.0,0.05955]
[1765177880202,0.07923085,91436.0,91435.0,0.13825669]
[1765177881013,0.07923085,91436.0,91435.0,0.05955]
[1765177882500,0.07923085,91436.0,91435.0,0.13825669]
[1765177883112,0.06829405,91436.0,91435.0,0.13825669]
[1765177885216,0.04044405,91436.0,91435.0,0.13825669]
[1765177886015,0.06829405,91436.0,91435.0,0.13825669]
[1765177887516,0.06829405,91436.0,91435.0,0.05955]
[1765177889318,0.04044405,91436.0,91435.0,0.05955]
[1765177891020,0.03944405,91436.0,91435.0,0.05955]
[1765177891220,0.04244405,91436.0,91435.0,0.05955]
[1765177891819,0.04244405,91436.0,91435.0,0.05855]
[1765177892728,0.06929405,91436.0,91435.0,0.05855]
[1765177893724,0.06729405,91436.0,91435.0,0.05855]
[1765177893925,0.06929405,91436.0,91435.0,0.05855]
[1765177895624,0.06729405,91436.0,91435.0,0.05855]
[1765177895824,0.06929405,91436.0,91435.0,0.05855]
[1765177896318,0.06929405,91436.0,91435.0,0.1372967]
[1765177896516,0.06929405,91436.0,91435.0,0.05855]
[1765177899141,0.06729405,91436.0,91435.0,0.05855]
[1765177899331,0.06929405,91436.0,91435.0,0.05855]
[1765177899832,0.07029405,91436.0,91435.0,0.05855]
[1765177900335,0.06729405,91436.0,91435.0,0.05855]
[1765177900636,0.07029405,91436.0,91435.0,0.05855]
[1765177902042,0.06929405,91436.0,91435.0,0.05855]
[1765177903241,0.07029405,91436.0,91435.0,0.05855]
[1765177904644,0.07029405,91436.0,91435.0,0.0694869]
[1765177905342,0.07029405,91436.0,91435.0,0.05855]
[1765177905643,0.07029405,91436.0,91435.0,0.0694869]
[1765177906344,0.07029405,91436.0,91435.0,0.05855]
[1765177911841,0.06929405,91436.0,91435.0,0.05855]
[1765177912459,0.07029405,91436.0,91435.0,0.05855]
[1765177913149,0.06929405,91436.0,91435.0,0.05855]
[1765177914647,0.06729405,91436.0,91435.0,0.05855]
[1765177914849,0.06929405,91436.0,91435.0,0.05855]
[1765177915650,0.07029405,91436.0,91435.0,0.05855]
[1765177923851,0.06929405,91436.0,91435.0,0.05855]
[1765177924152,0.06929405,91436.0,91435.0,0.13731099]
[1765177924956,0.07029405,91436.0,91435.0,0.13731099]
[1765177926356,0.07029405,91436.0,91435.0,0.14824789]
[1765177927460,0.07029405,91436.0,91435.0,0.0694869]
[1765177927650,0.07029405,91436.0,91435.0,0.05855]
[1765177929759,0.05816,91428.0,91427.0,0.12640282]
[1765177929952,0.05816,91428.0,91427.0,0.0668578]
[1765177930849,0.05816,91428.0,91427.0,0.0678578]
[1765177933458,0.05816,91428.0,91427.0,0.05692]
[1765177934055,0.05816,91428.0,91427.0,0.13564167]
[1765177934861,0.05816,91428.0,91427.0,0.05576]
[1765177935363,0.02883,91428.0,91427.0,0.05576]
[1765177935573,0.05841,91428.0,91427.0,0.05576]
[1765177935860,0.0696273,91432.0,91431.0,0.07193]
[1765177936961,0.05869,91432.0,91431.0,0.0828674]
[1765177937359,0.06069,91432.0,91431.0,0.0828674]
[1765177937962,0.05969,91432.0,91431.0,0.0828674]
[1765177944073,0.05969,91432.0,91431.0,0.07193]
[1765177959180,0.03011,91432.0,91431.0,0.07193]
[1765177959376,0.05969,91432.0,91431.0,0.07193]
[1765177960976,0.03011,91432.0,91431.0,0.07193]
[1765177961279,0.001,91432.0,91431.0,0.07193]
[1765177961474,0.001,91432.0,91431.0,0.15065167]
[1765177962279,0.001,91432.0,91431.0,0.07193]
[1765177962480,0.001,91432.0,91431.0,0.07293]
[1765177962681,0.040047,91435.0,91434.0,0.07298]
[1765177962871,0.068257,91435.0,91434.0,0.07298]
[1765177964768,0.070257,91435.0,91434.0,0.07298]
[1765177967880,0.073257,91435.0,91434.0,0.07298]
[1765177968378,0.074257,91435.0,91434.0,0.07298]
[1765177972787,0.03457,91435.0,91434.0,0.07298]
[1765177972984,0.0737169,91435.0,91434.0,0.07298]
[1765177976985,0.006,91435.0,91434.0,0.07298]
[1765177977480,0.01016405,91436.0,91435.0,0.0673669]
[1765177977683,0.0109358,91444.0,91443.0,0.0732]
[1765177978286,0.0109358,91444.0,91443.0,0.0277059]
[1765177978490,0.0109358,91444.0,91443.0,0.0851259]
[1765177979783,0.0109357,91446.0,91445.0,0.05742]
[1765177980973,0.0684257,91446.0,91445.0,0.05742]
[1765177981179,0.0694257,91446.0,91445.0,0.05742]
[1765177981376,0.0714257,91446.0,91445.0,0.05742]
[1765177987589,0.06775,91440.0,91439.0,0.07873021]
[1765177987796,0.0684269,91435.0,91434.0,0.00016405]
[1765177988479,0.0684269,91435.0,91434.0,0.02884405]
[1765177988681,0.0684269,91435.0,91424.0,0.01683]
[1765177988682,0.0684281,91425.0,91424.0,0.07425]
[1765177989793,0.0684281,91425.0,91424.0,0.05742]
[1765177990193,0.068429,91417.0,91416.0,0.02868]
[1765177990599,0.068429,91417.0,91416.0,0.05742]
[1765177990787,0.068429,91417.0,91416.0,0.07425]
[1765177991289,0.068429,91417.0,91416.0,0.08125]
[1765177992385,0.068429,91417.0,91416.0,0.08325]
[1765177997389,0.068429,91417.0,91416.0,0.06675]
[1765177999500,0.068429,91417.0,91416.0,0.0842]
[1765178002201,0.068429,91417.0,91416.0,0.06675]
[1765178002394,0.068429,91417.0,91416.0,0.0842]
[1765178005291,0.068429,91417.0,91416.0,0.06675]
[1765178005492,0.068429,91417.0,91416.0,0.03768]
[1765178005988,0.068429,91417.0,91416.0,0.06675]
[1765178008906,0.01026,91424.0,91397.0,0.0727927]
[1765178008907,0.0684413,91398.0,91397.0,0.0727927]
[1765178009203,0.0684413,91398.0,91397.0,0.05685]
[1765178009598,0.0684413,91398.0,91397.0,0.0690193]
[1765178010399,0.0684413,91398.0,91397.0,0.0750193]
[1765178010795,0.0684413,91398.0,91397.0,0.0790193]
[1765178011595,0.0684413,91398.0,91397.0,0.0760193]
[1765178011800,0.0684413,91398.0,91397.0,0.0191693]
[1765178013102,0.0684413,91398.0,91397.0,0.0469493]
[1765178013298,0.0684413,91398.0,91397.0,0.0191693]
[1765178013505,0.0684413,91398.0,91397.0,0.0760193]
[1765178014712,0.0396213,91398.0,91397.0,0.0760193]
[1765178015006,0.0109408,91403.0,91400.0,0.01745]
[1765178015210,0.0109408,91403.0,91402.0,0.05685]
[1765178015414,0.0396208,91403.0,91402.0,0.05685]
[1765178016616,0.0416208,91403.0,91402.0,0.05685]
[1765178017102,0.002,91403.0,91402.0,0.05685]
[1765178018610,0.0396205,91405.0,91404.0,0.05685]
[1765178018812,0.0684405,91405.0,91404.0,0.05685]
[1765178019912,0.0704405,91405.0,91404.0,0.05685]
[1765178021316,0.0684405,91405.0,91404.0,0.05685]
[1765178021908,0.0704405,91405.0,91404.0,0.05685]
[1765178025117,0.0416205,91405.0,91404.0,0.05685]
[1765178025314,0.0711705,91405.0,91404.0,0.05685]
[1765178026220,0.0129405,91405.0,91404.0,0.05685]
[1765178026623,0.0721505,91405.0,91404.0,0.05685]
[1765178027922,0.002,91405.0,91404.0,0.05685]
[1765178028927,0.0109404,91406.0,91405.0,0.0854105]
[1765178029426,0.0109404,91406.0,91405.0,0.07447]
[1765178029726,0.0109404,91406.0,91405.0,0.0854105]
[1765178031818,0.0129404,91406.0,91405.0,0.0854105]
[1765178032018,0.0129404,91406.0,91405.0,0.07447]
[1765178033421,0.0426004,91406.0,91405.0,0.07447]
[1765178033626,0.002,91406.0,91405.0,0.07447]
[1765178034917,0.01110425,91407.0,91406.0,0.0674504]
[1765178035220,0.00016405,91407.0,91406.0,0.0674504]
[1765178036832,0.00016405,91407.0,91406.0,0.0684504]
[1765178037127,0.00116405,91407.0,91406.0,0.0684504]
[1765178037636,0.00016405,91407.0,91406.0,0.0684504]
[1765178038925,0.00116405,91407.0,91406.0,0.0684504]
[1765178039333,0.02850405,91407.0,91406.0,0.0684504]
[1765178039636,0.02850405,91407.0,91406.0,0.0674504]
[1765178040440,0.02750405,91407.0,91406.0,0.0674504]
[1765178040640,0.02850405,91407.0,91406.0,0.0674504]
[1765178042236,0.00116405,91407.0,91406.0,0.0674504]
[1765178042631,0.19911382,91430.0,91429.0,0.05844]
[1765178042828,0.08340477,91430.0,91429.0,0.05844]
[1765178043841,0.08940477,91430.0,91429.0,0.05844]
[1765178044242,0.06285,91430.0,91429.0,0.05844]
[1765178044544,0.08791465,91430.0,91429.0,0.05844]
[1765178044837,0.06185,91430.0,91429.0,0.05844]
[1765178045235,0.06285,91430.0,91429.0,0.05844]
[1765178046736,0.06085,91430.0,91429.0,0.05844]
[1765178047932,0.001,91430.0,91429.0,0.05844]
[1765178048128,0.003,91430.0,91429.0,0.05844]
[1765178048329,0.004,91430.0,91429.0,0.05844]
[1765178048936,0.003,91430.0,91429.0,0.05844]
[1765178049140,0.004,91430.0,91429.0,0.05844]
[1765178050136,0.001,91430.0,91429.0,0.05844]
[1765178050333,0.004,91430.0,91429.0,0.05844]
[1765178051224,0.0109366,91438.0,91437.0,0.0693767]
[1765178051637,0.00016405,91439.0,91438.0,0.05844]
[1765178053436,0.02750405,91439.0,91438.0,0.05844]
[1765178053626,0.00516405,91439.0,91438.0,0.05844]
[1765178054432,0.00716405,91439.0,91438.0,0.05844]
[1765178054833,0.03570405,91439.0,91438.0,0.05844]
[1765178055445,0.00716405,91439.0,91438.0,0.05844]
[1765178056948,0.01810045,91439.0,91438.0,0.05844]
[1765178057541,0.04664045,91439.0,91438.0,0.05844]
[1765178060234,0.01810045,91439.0,91438.0,0.05844]
[1765178060939,0.00716405,91439.0,91438.0,0.05844]
[1765178073957,0.03570405,91439.0,91438.0,0.05844]
[1765178074258,0.06341405,91439.0,91438.0,0.05844]
[1765178075459,0.03570405,91439.0,91438.0,0.05844]
[1765178077254,0.00716405,91439.0,91438.0,0.05844]
[1765178087968,0.00716405,91439.0,91437.0,0.0277967]
[1765178087969,0.1833446,91455.0,91454.0,0.05686]
[1765178088163,0.2123246,91455.0,91454.0,0.05686]
[1765178088467,0.1436,91455.0,91454.0,0.0677946]
[1765178089170,0.1546,91455.0,91454.0,0.14646116]
[1765178089758,0.1546,91455.0,91454.0,0.0677946]
[1765178096770,0.00016405,91464.0,91463.0,0.0677935]
[1765178096974,0.0687222,91474.0,91473.0,0.0677923]
[1765178097764,0.0687222,91474.0,91473.0,0.07979317]
[1765178098365,0.0687222,91474.0,91473.0,0.08479317]
[1765178098874,0.0687222,91474.0,91473.0,0.08379317]
[1765178100260,0.05779,91474.0,91473.0,0.08379317]
[1765178100462,0.0687213,91482.0,91481.0,0.0677913]
[1765178100860,0.0687213,91482.0,91481.0,0.05686]
[1765178101065,0.00016405,91483.0,91476.0,0.05686]
[1765178101066,0.0687219,91477.0,91476.0,0.05686]
[1765178101264,0.0687219,91477.0,91476.0,0.067792]
[1765178101673,0.0687219,91477.0,91476.0,0.05686]
[1765178102470,0.0687219,91477.0,91476.0,0.08436]
[1765178103578,0.05779,91477.0,91476.0,0.08436]
[1765178103966,0.05779,91477.0,91476.0,0.07436]
[1765178104275,0.05779,91477.0,91476.0,0.08536]
[1765178105070,0.05779,91477.0,91476.0,0.07536]
[1765178105271,0.05779,91477.0,91476.0,0.08536]
[1765178106674,0.05779,91477.0,91476.0,0.07536]
[1765178106875,0.05779,91477.0,91476.0,0.08636]
[1765178107179,0.05779,91477.0,91476.0,0.08536]
[1765178107375,0.05779,91477.0,91476.0,0.08636]
[1765178107971,0.05779,91477.0,91476.0,0.08536]
[1765178108170,0.05779,91477.0,91476.0,0.08636]
[1765178110377,0.05779,91477.0,91476.0,0.08536]
[1765178110683,0.05583,91474.0,91473.0,0.06807087]
[1765178112877,0.05583,91474.0,91473.0,0.07907087]
[1765178113876,0.05583,91474.0,91473.0,0.06807087]
[1765178114078,0.05583,91474.0,91473.0,0.07907087]
[1765178114473,0.05583,91474.0,91473.0,0.06807087]
[1765178114678,0.05583,91474.0,91473.0,0.07907087]
[1765178115184,0.05583,91474.0,91473.0,0.13795769]
[1765178116182,0.05583,91474.0,91473.0,0.07907087]
[1765178120177,0.05583,91474.0,91473.0,0.06807087]
[1765178120381,0.05583,91474.0,91473.0,0.07907087]
[1765178121689,0.05583,91474.0,91473.0,0.02300087]
[1765178122685,0.05583,91474.0,91473.0,0.011]
[1765178123086,0.05898,91465.0,91464.0,0.05910751]
[1765178123488,0.05898,91465.0,91464.0,0.07100967]
[1765178124190,0.05898,91465.0,91464.0,0.01206621]
[1765178125100,0.05898,91465.0,91464.0,0.01406621]
[1765178125690,0.05898,91465.0,91464.0,0.02406621]
[1765178130202,0.0699133,91465.0,91464.0,0.02406621]
[1765178131911,0.0699133,91465.0,91464.0,0.07944621]
[1765178133104,0.0699133,91465.0,91464.0,0.02406621]
[1765178137014,0.0699133,91465.0,91464.0,0.01216405]
[1765178137809,0.0699149,91452.0,91451.0,0.05538]
[1765178138009,0.0699149,91452.0,91451.0,0.06699677]
[1765178139018,0.0699149,91452.0,91451.0,0.06999677]
[1765178139318,0.0699149,91452.0,91451.0,0.08099677]
[1765178140917,0.0109349,91452.0,91451.0,0.08099677]
[1765178141309,0.0399349,91452.0,91451.0,0.08099677]
[1765178141620,0.0109349,91452.0,91451.0,0.08099677]
[1765178141918,0.0109343,91457.0,91456.0,0.07258]
[1765178143309,0.0389043,91457.0,91456.0,0.07258]
[1765178143510,0.0109343,91457.0,91456.0,0.07258]
[1765178143912,0.0109343,91457.0,91456.0,0.07658]
[1765178144116,0.0109343,91457.0,91456.0,0.07858]
[1765178144416,0.0109342,91458.0,91457.0,0.0662543]
[1765178145121,0.0109342,91458.0,91457.0,0.05532]
[1765178145419,0.0675542,91458.0,91457.0,0.05532]
[1765178145623,0.0675542,91458.0,91457.0,0.05732]
[1765178146921,0.0685542,91458.0,91457.0,0.05732]
[1765178149222,0.0685542,91458.0,91457.0,0.11626346]
[1765178150212,0.0685542,91458.0,91457.0,0.05732]
[1765178151821,0.0399042,91458.0,91457.0,0.05732]
[1765178152020,0.0119342,91458.0,91457.0,0.05732]
[1765178152522,0.0685542,91458.0,91457.0,0.05732]
[1765178153517,0.0119342,91458.0,91457.0,0.0682543]
[1765178155223,0.001,91458.0,91457.0,0.0682543]
[1765178155429,0.0109331,91467.0,91466.0,0.0109331]
[1765178155728,0.0109331,91467.0,91466.0,0.0662531]
[1765178156629,0.0149331,91467.0,91466.0,0.0682531]
[1765178157021,0.004,91467.0,91466.0,0.0682531]
[1765178159528,0.004,91467.0,91466.0,0.0672531]
[1765178159728,0.004,91467.0,91466.0,0.0682531]
[1765178167034,0.03115,91467.0,91466.0,0.05732]
[1765178167238,0.06082,91467.0,91466.0,0.05732]
[1765178171238,0.06082,91467.0,91466.0,0.11618956]
[1765178173047,0.06082,91467.0,91466.0,0.002]
[1765178174040,0.06082,91467.0,91466.0,0.06053]
[1765178179653,0.06082,91467.0,91466.0,0.002]
[1765178181045,0.06082,91467.0,91466.0,0.03093]
[1765178181952,0.06082,91467.0,91466.0,0.06053]
[1765178186054,0.004,91467.0,91466.0,0.06053]
[1765178189246,0.01109605,91476.0,91475.0,0.05853]
[1765178191658,0.01609605,91476.0,91475.0,0.05853]
[1765178191954,0.00516405,91476.0,91475.0,0.05853]
[1765178192145,0.00016405,91476.0,91475.0,0.05853]
[1765178192454,0.00216405,91476.0,91475.0,0.05853]
[1765178193257,0.00016405,91476.0,91475.0,0.05953]
[1765178193449,0.00116405,91476.0,91475.0,0.05953]
[1765178194055,0.00116405,91476.0,91475.0,0.05853]
[1765178197051,0.00016405,91476.0,91475.0,0.05953]
[1765178197761,0.00016405,91476.0,91475.0,0.05853]
[1765178197955,0.00016405,91476.0,91475.0,0.05953]
[1765178199162,0.0109313,91483.0,91482.0,0.0694613]